Cogmind - Beta 10.2 @@@ ROGUE MODE // 2021.09.04 @ 14:33:50 Player: Xtrem532 Result: Destroyed by S-10 Pest with Light Assault Rifle Performance ------------- Evolutions (0) 0 Regions Visited (2) 400 Robots Destroyed (27) 135 Value Destroyed (641) 641 Prototype IDs (0) 0 Alien Tech Used (0) 0 Bonus (0) 0 TOTAL SCORE: 1176 Bonus ------- None Cogmind --------- Core Integrity 0/250 Matter 300/300 Energy 246/250 System Corruption 1% Temperature Cool (2) Movement Walking (150) Ox1 Location -10/Mines Parts ------- > --- POWER (1) -------- Ion Engine > --- PROPULSION (2) --- Aluminum Leg Aluminum Leg > --- UTILITY (2) ------ Improved Heat Sink High-capacity Storage Unit > --- WEAPON (2) ------- Mining Laser > --- INVENTORY (12) --- Light Treads Aluminum Leg Heat Sink Large Storage Unit Visual Processing Unit Sensor Array Signal Interpreter Transport Network Coupler Light Armor Plating Datajack Peak State ------------ > --- POWER ------------ Light Nuclear Core > --- PROPULSION ------- Aluminum Leg Aluminum Leg > --- UTILITY ---------- Improved Heat Sink Large Storage Unit > --- WEAPON ----------- EM Pulse Gun Mining Laser > --- INVENTORY -------- Ion Engine Aluminum Leg Aluminum Leg Medium Battery Visual Processing Unit Signal Interpreter [Rating: 11] Favorites ----------- Power Ion Engine Engine Ion Engine Power Core Light Nuclear Core Propulsion Aluminum Leg Leg Aluminum Leg Utility Large Storage Unit Device Improved Heat Sink Storage Large Storage Unit Hackware Hacking Suite Protection Light Armor Plating Weapon Beam Cannon Energy Gun Small Laser Energy Cannon Beam Cannon Ballistic Gun Light Assault Rifle Special Weapon Mining Laser Build | -11 -10 -10 ------- Run | Scr Mat Min Slots Evolved . | . . . Power . | . . . Propulsion . | . . . Utility . | . . . Weapon . | . . . Parts Attached 34 | 7 27 . Power 6 | 1 5 . Engine 5 | 1 4 . Core 1 | . 1 . Reactor . | . . . Propulsion 4 | 2 2 . Treads . | . . . Leg 4 | 2 2 . Wheel . | . . . Hover . | . . . Flight . | . . . Utility 13 | 1 12 . Device 8 | . 8 . Storage 3 | 1 2 . Processor . | . . . Hackware 1 | . 1 . Protection 1 | . 1 . Artifact . | . . . Weapon 11 | 3 8 . Energy Gun 4 | 1 3 . Energy Cannon 2 | . 2 . Ballistic Gun 2 | 2 . . Ballistic Cannon . | . . . Launcher . | . . . Special Weapon 3 | . 3 . Impact Weapon . | . . . Slashing Weapon . | . . . Piercing Weapon . | . . . Special Melee Weapon . | . . . Unidentified Prototypes . | . . . Parts Lost 11 | . 10 1 Power 2 | . 2 . Propulsion 1 | . 1 . Utility 3 | . 3 . Weapon 5 | . 4 1 Highest Loss Streak 6 | . 6 1 Average Slot Usage (%) 96 | . 96 99 Engine 12 | . 12 14 Leg 28 | . 28 28 Device 9 | . 9 14 Storage 14 | . 14 14 Protection 1 | . 1 . Energy Gun 2 | . 2 . Energy Cannon 13 | . 13 13 Ballistic Gun 5 | . 5 . Special Weapon 6 | . 5 14 Naked Turns . | . . . Heaviest Build 44 | 7 44 42 Greatest Support 20 | 20 20 20 Greatest Overweight (x) 2 | . 2 2 Average Overweight (x) 1 | . . 1 Largest Inventory Capacity 12 | 4 12 12 Average Capacity 9 | 4 9 12 Most Carried 11 | 4 11 10 Average Carried 7 | 2 7 10 Final Capacity 12 | 4 12 12 Final Carried 10 | 4 10 10 Class Distribution -------------------- 60% | Mutant 39% | Scavenger-Mutant Dominant Class ---------------- Mutant | -10/Materials Scavenger-Mutant | -10/Mines Resources | -11 -10 -10 ----------- Run | Scr Mat Min Matter Collected 668 | 311 357 . Remotely . | . . . Salvage Created 989 | 62 908 19 Parts 61 | 5 54 2 Haulers Intercepted 1 | . 1 . Recyclers Shooed 3 | . 3 . Parts Field Recycled . | . . . Retrieved Matter . | . . . Parts Self-Destructed . | . . . Prevented . | . . . Kills | -11 -10 -10 ------- Run | Scr Mat Min Combat Hostiles Destroyed 15 | 1 13 1 Guns 8 | 1 7 . Cannons 7 | . 6 1 Classes Destroyed 8 | 2 5 1 Worker 2 | 1 1 . Builder 2 | . 2 . Hauler 1 | . 1 . Recycler 3 | . 3 . Operator 1 | . 1 . Watcher 3 | . 3 . Swarmer 1 | . . 1 Grunt 14 | 1 13 . Best Kill Streak 3 | 1 3 1 Combat Bots Only 3 | 1 3 1 Max Kills in Single Turn 1 | 1 1 1 Gunslinging . | . . . Exploded . | . . . Melee . | . . . Uniques/NPCs Destroyed . | . . . Combat | -11 -10 -10 -------- Run | Scr Mat Min Damage Taken 1188 | 12 1073 103 Core 252 | . 240 12 Absorbed by Shields . | . . . Core Remaining (%) 100 | 100 . . Volleys Fired 111 | 3 103 5 Largest 2 | 2 2 1 Hottest 160 | 40 160 60 Shots Fired 175 | 6 164 5 Gun 101 | 6 95 . Cannon 55 | . 50 5 Launcher . | . . . Special 19 | . 19 . Kinetic 71 | 6 65 . Thermal 87 | . 82 5 Explosive . | . . . Electromagnetic 17 | . 17 . Robot Hit Streak 9 | 5 9 1 Robot Miss Streak 4 | . 4 1 Penetration Max . | . . . Secondary Targets . | . . . Shots Hit Robots 98 | 5 90 3 Core Hits 44 | 4 39 1 Critical Hits . | . . . Critical Kills . | . . . Critical Parts Destroyed . | . . . Melee Attacks . | . . . Impact . | . . . Slashing . | . . . Piercing . | . . . Sneak Attacks . | . . . Combat Hostiles . | . . . Follow-up Attacks . | . . . Damage Inflicted 1317 | 45 1220 52 Guns 745 | 45 700 . Cannons 476 | . 424 52 Explosions . | . . . Melee . | . . . Ramming . | . . . Kinetic 431 | 45 386 . Thermal 702 | . 650 52 Explosive . | . . . Electromagnetic 184 | . 184 . Impact . | . . . Slashing . | . . . Piercing . | . . . Highest Corruption 1 | . 1 1 Average Corruption 1 | . 1 1 Corruption Purged . | . . . Effects 3 | . 2 1 Message Errors 2 | . 1 1 Energy Discharges 1 | . 1 . Overload Shots . | . . . Overflow Damage 19 | . 19 . Projectiles 19 | . 19 . Explosions . | . . . Melee . | . . . Knockbacks . | . . . Impact . | . . . Kinetic . | . . . Secondary . | . . . Self-Inflicted Damage . | . . . Shots . | . . . Rammed . | . . . Targets Rammed . | . . . Kicked . | . . . Crushed . | . . . Highest Temperature 306 | . 306 . Average Temperature 114 | . 114 . Received Heat Transfer 612 | 6 606 . Effects 2 | . 2 . Energy Bleed 1 | . 1 . Short Circuit 1 | . 1 . Siege Activations . | . . . Robots Corrupted . | . . . Combat Hostiles . | . . . Parts Fried 1 | . 1 . Impact Corruptions . | . . . Robots Melted . | . . . Combat Hostiles . | . . . Parts Melted 1 | . 1 . Heat Transferred 1499 | . 1388 111 Parts Sabotaged . | . . . Parts Stolen . | . . . Parts Stripped . | . . . Power Chain Reactions . | . . . Missiles Intercepted . | . . . Alert | -11 -10 -10 ------- Run | Scr Mat Min Peak Influence 254 | 25 254 75 Initial 30 | . 16 30 Average 90 | 5 100 38 Maximum Alert Level 1 | . 1 . Low Security (%) 97 | 100 96 100 Level 1 2 | . 3 . Level 2 . | . . . Level 3 . | . . . Level 4 . | . . . Level 5 . | . . . High Security . | . . . Max Security . | . . . Squads Dispatched 5 | . 5 . Investigation 2 | . 2 . Extermination . | . . . Reinforcement 3 | . 3 . Assault . | . . . Garrison . | . . . Intercept . | . . . Construction Impeded . | . . . Haulers Reinforced . | . . . Stealth | -11 -10 -10 --------- Run | Scr Mat Min Distress Signals 1 | . 1 . Communications Jammed . | . . . Distress Signals . | . . . Times Spotted 28 | 1 23 4 Peak Tracking Total 4 | . 4 3 Tactical Retreats 5 | . 4 1 Traps | -11 -10 -10 ------- Run | Scr Mat Min Traps Triggered 1 | . 1 . Indirectly . | . . . Trap Hack Attempts . | . . . Triggered . | . . . Disarmed . | . . . Reprogrammed . | . . . Reused . | . . . Traps Extracted . | . . . Installed . | . . . Triggered . | . . . Machines | -11 -10 -10 ---------- Run | Scr Mat Min Machines Disabled 2 | . 2 . Max in Single Turn 1 | . 1 . Machines Sabotaged . | . . . Garrisons Compromised . | . . . Overloaded Fab Kills . | . . . Fab Network Shutdowns . | . . . Hacking | -11 -10 -10 --------- Run | Scr Mat Min Machines Accessed 7 | . 7 . Terminals 4 | . 4 . Fabricators . | . . . Repair Stations 1 | . 1 . Recycling Units 2 | . 2 . Scanalyzers . | . . . Garrison Access . | . . . Total Hacks 21 | . 21 . Successful 18 | . 18 . Failed 3 | . 3 . Catastrophic . | . . . Database Lockouts . | . . . Manual 2 | . 2 . Terminals 14 | . 14 . Fabricators . | . . . Repair Stations 2 | . 2 . Recycling Units 5 | . 5 . Scanalyzers . | . . . Garrison Access . | . . . Terminal Hacks 11 | . 11 . Record 1 | . 1 . Robot Analysis 1 | . 1 . Branch Access Points 1 | . 1 . Alert Level 1 | . 1 . Locate Traps 1 | . 1 . Dispatch Records 3 | . 3 . Security Status 1 | . 1 . Assault Status 1 | . 1 . Hauler Manifests 1 | . 1 . Fabricator Hacks . | . . . Repair Station Hacks 2 | . 2 . Scan Component 1 | . 1 . Repair 1 | . 1 . Recycling Unit Hacks 3 | . 3 . Report Inventory 2 | . 2 . Retrieve Components 1 | . 1 . Scanalyzer . | . . . Garrison Access Hacks . | . . . Unauthorized Hacks 2 | . 2 . Terminals 2 | . 2 . Botnet 2 | . 2 . Fabricators . | . . . Repair Stations . | . . . Recycling Units . | . . . Scanalyzers . | . . . Garrison Access . | . . . Data Cores Recovered . | . . . Used . | . . . Hacking Detections 6 | . 6 . Full Trace Events 3 | . 3 . Feedback Events . | . . . Feedback Blocked . | . . . Robot Schematics Acquired . | . . . Robots Built . | . . . Matter . | . . . Time . | . . . Total Robot Build Rating . | . . . Part Schematics Acquired . | . . . Parts Built . | . . . Matter . | . . . Time . | . . . Total Part Build Rating . | . . . Parts Repaired 1 | . 1 . Time 26 | . 26 . Parts Recycled . | . . . Recycled Matter . | . . . Retrieved Matter . | . . . Retrieved Components 10 | . 10 . Parts Scanalyzed . | . . . Part Schematics Acquired . | . . . Parts Damaged . | . . . Bothacking | -11 -10 -10 ------------ Run | Scr Mat Min Used RIF Installer . | . . . Robots Hacked . | . . . Non-combat . | . . . Combat . | . . . Robot Hacks Applied . | . . . Relay Couplers Released . | . . . Robots Rewired . | . . . Allies Hacked . | . . . Hacks Repelled . | . . . Allies | -11 -10 -10 -------- Run | Scr Mat Min Total Allies . | . . . Largest Group . | . . . Highest-Rated Group . | . . . Highest-Rated Ally . | . . . Total Orders . | . . . Ally Attacks . | . . . Total Damage . | . . . Kills . | . . . Allies Corrupted . | . . . Allies Melted . | . . . Intel | -11 -10 -10 ------- Run | Scr Mat Min Robot Analysis Total 1 | . 1 . Derelict Logs Recovered . | . . . Drone Launches . | . . . Drone Recoveries . | . . . Exploration | -11 -10 -10 ------------- Run | Scr Mat Min Turns Passed 2110 | 112 1817 181 Spaces Moved 1099 | 87 918 94 Core 32 | 32 . . Treads . | . . . Legs 1067 | 55 918 94 Wheels . | . . . Hover . | . . . Flight . | . . . Fastest Speed 50 | 50 120 150 Average Speed 147 | 94 149 179 Slowest Speed 180 | 120 180 180 Overloaded Moves . | . . . Propulsion Burnouts . | . . . Robots Hopped . | . . . Cave-ins Triggered . | . . . Exploration Rate (%) 41 | 6 92 26 Regions Visited 2 Branch Regions 1 Pre-discovered Areas . | . . . Known Exits Taken 1 | . 1 . Unknown Exits Taken 1 | 1 . . Scrap Searched . | . . . Spaces Dug 13 | . 13 . Terrain Destroyed 15 | . 15 . Melee . | . . . Projectile 15 | . 15 . AOE . | . . . Terrain Rammed . | . . . Walls Destroyed . | . . . Machines Disabled . | . . . Actions | -11 -10 -10 --------- Run | Scr Mat Min Total 1384 | 113 1169 102 Wait 84 | . 81 3 Move 1097 | 86 917 94 Hop . | . . . Pick Up 36 | 13 23 . Fast Attach 5 | . 5 . Attach 25 | 7 18 . Detach 9 | 1 8 . Swap 4 | . 4 . Drop 13 | 3 10 . Fire 111 | 3 103 5 Melee . | . . . Ram . | . . . Kick . | . . . Crush . | . . . Escape Stasis . | . . . Rewire . | . . . Trap . | . . . Miscellaneous . | . . . Route ------- -11/Scrapyard -10/Materials (discovered 5 exits: [*Mat x3] / *Min x2) -10/Mines History --------- Turn | Location | Event 2 | -11/Scrapyard | Met Revision 17 85 | -11/Scrapyard | Discovered new exit (range 8) 113 | -11/Scrapyard | Entered Materials 313 | -10/Materials | Build established: Mutant 418 | -10/Materials | Discovered new exit (range 16) 507 | -10/Materials | Discovered new exit (range 15) 530 | -10/Materials | Core integrity fell below 50% 549 | -10/Materials | Core integrity fell below 20% 564 | -10/Materials | Lost 6 parts (1p2u3w) 695 | -10/Materials | Discovered new exit (range 9) 704 | -10/Materials | Identified exit to Mines 885 | -10/Materials | Repaired Ion Engine 1120 | -10/Materials | Discovered new exit (range 3) 1377 | -10/Materials | Discovered new exit (range 4) 1649 | -10/Materials | Build established: Scavenger-Mutant 1930 | -10/Materials | Entered Mines 1975 | -10/Mines | Met a Derelict bent on vengeance 2111 | -10/Mines | Destroyed by S-10 Pest with Light Assault Rifle Last Messages --------------- 01744_ U-05 Engineer builds a Wall. 01750_ R-06 Scavenger collects Wheel. 01755_ R-06 Scavenger destroyed. 01760_ ZDKBQX004E97G#P9WW6M&2ROI 01761_ K-01 Serf collects debris. 01765_ U-05 Engineer builds a Wall. 01785_ R-06 Scavenger collects Wheel. 01790_ U-05 Engineer builds a Wall. 01791_ R-06 Scavenger collects Wheel. 01795_ U-05 Engineer destroyed. 01795_ K-01 Serf collects debris. 01811_ U-05 Engineer builds a Wall. 01842_ Acquired 30 matter. 01878_ K-01 Serf destroyed. 01910_ K-01 Serf cleans the Atomic Centrifuge. LOCATION=MINES GOAL=ESCAPE 01982_ 0JL/HW#&TNNNQQSNTISAMPRW=K59J4 47B 02062_ S-10 Pest destroyed. 02109_ Beam Cannon destroyed. Map ----- +----------------------------------------------------+ | ?????????????????????????????????????????????????? | | ?????????????????????????????????????????????????? | | ?????????????????????????????????????????????????? | | ?????????????????????????????????????????????????? | | ?????????????????????????????????????????????????? | | ?????????????????????????????????????????????????? | | ?????????????????????????????????????????????????? | | ?????????????????????????????????????????????????? | | ?????????????????????????????????????????????????? | | ?????????????????????????????????????????????????? | | ?????????????????????????????????????????????????? | | ?????????????????????????????????????????????????? | | ?????????????????????????????????????????????????? | | ??????????????????##?????????????????????????????? | | ??????????????# ## ????????????????????????????? | | ?????????????? # ????????????????????????????? | | ?????????????? ???????????????????????????? | | ???????????????# ???????????????????????????? | | ???????????? ## #??????????????????????????? | | ???????????? #?????????????????????????? | | ?????????????? s #?????#??????????????????? | | ???????????????# ##?? #??????????????????? | | ????????????????# #? #??????????????????? | | ?????????????????# * ## #??????????????????? | | ???????????????????? =% #??????????????????? | | ???????????????????????# @ #??????????????????? | | ???????????????????????##%#####??????????????????# | | ????????????????????????#=#?????????????????????## | | ????????????????????????# #????????????????????## | | ????????????????????????# #????????????????????# | | ????????????????????????# #????????????????????# | | ????????????????????????# #????????????????????# | | ????????????????????????# #???????????????????## | | ????????????????????????# #???????????????????# | | ????????????????????????# #???????????????????# | | ????????????????????????# #########???????????## | | ????????????????????????# #???????????## | | ????????????????????????######### #????????#### | | ????????????????????????????????# #???????## | | ????????????????????????????????# #??????## ## | | ????????????????????????????????# ######## ##? | | ????????????????????????????????# #?? | | ????????????????????????????????########### ##?? | | ??????????????????????????????????????????#####??? | | ?????????????????????????????????????????????????? | | | | | | | | | | | +----------------------------------------------------+ Best States ------------- Heat Dissipation 39 Energy Generation 14 Energy Capacity 250 Matter Stores 350 Matter Capacity 350 Sight Range 16 Robot Scan Range 10 Terrain Scan Density 10 Armor Coverage 150 Evasion (%) 50 Offensive Hacking 10 Item Schematics ----------------- None Robot Schematics ------------------ None Fabricated ------------ Nothing Alien Tech Used ----------------- None Achievements -------------- True Hacker Challenges ------------ None Game ------ Seed InsulatedBoreMatrix Manual? 0 Play Time 00:50:15 Cumulative 3.0 hours Start 2021.09.04 @ 13:38:23 End 2021.09.04 @ 14:33:50 Sessions 1 Manual Loads 0 Difficulty Rogue Special Mode None Game No. 6 Rogue 6 Adventurer 0 Explorer 0 Win Type - Total 0 Types 0/0/0/0/0/0/0/0/0 Lore% 2 Gallery% 5 Achievement% 3 Wizard Run 0 Options --------- ASCII 0 Keyboard 1 Movement Numpad Keybinds 1 Fullscreen 2 Font 18/X11 Map View 76x50 Tactical HUD 1 Map Filters NONE Filters NONE Steam 1 RUN: 55089dba-1fa8-428b-9e9e-a5e400acf50d